{"text_format":"5","workbook":"xlsx","n_sheets":1,"sheets":["Termál rendszer kiépítése"],"props":{"creator":"PC13","last_modified_by":"Megyeri Sándor János","company":"PC13"},"read":"whole","wrapped":"gz","date_system":"1900"}

{"sheet":"Termál rendszer kiépítése","index":0,"n_rows":23,"n_cols":9,"rows_kept":23}
[null,"VERESEGYHÁZ Katolikus Gimnázium"]
[null,"Termál rendszer kiépítése"]
[]
[null,"Megnevezés","Mennyiség","Egységár anyag","Egységár díj","Anyag","Díj","Nettó ár","Bruttó ár"]
[null,"Kiviteli és megvalósulási tervek elkészítése",{"v":1,"d":"1 db"},null,null,{"$f":"D5*C5","v":0},{"$f":"E5*C5","v":0},{"$f":"SUM(F5:G5)","v":0},{"$f":"H5*1.27","v":0}]
[null,"Földmunka, bontási munkák (vezeték takarása 1 m): közműfeltárások, aszfaltbontás, árokásás kézi és gépi erővel, homokágy készítése, visszatöltés réteges tömörítéssel, maradék föld elszállítása",{"v":60,"d":"60 m³"},null,null,0,0,{"$f":"SUM(F6:G6)","v":0},{"$f":"H6*1.27","v":0}]
[null,"Előremenő PP SDR11 vezeték hőszigetelve segédanyagokkal DN110/Da200 méretben",{"v":50,"d":"50 m"},null,null,0,0,0,0]
[null,"Szigetelt idom PP SDR11 DN110/Da200",{"v":2,"d":"2 db"},null,null,0,0,0,0]
[null,"Visszatérő PP SDR11 vezeték DN110 méretben",{"v":50,"d":"50 m"},null,null,0,0,0,0]
[null,"Szigeteletlen idom PP SDR11 DN110",{"v":2,"d":"2 db"},null,null,0,0,0,0]
[null,"Vezeték hegesztése PP SDR11 DN110",{"v":100,"d":"100 m"},null,null,0,0,0,0]
[null,"Nyomáspróba, nyomvonal geodéziai bemérése",{"v":100,"d":"100 m"},null,null,0,0,0,0]
[null,"Helyreállítás, tereprendezés",{"v":75,"d":"75 m²"},null,null,0,0,{"$f":"SUM(F13:G13)","v":0},0]
[null,"Termál fűtési hőcserélő, korrózióálló, 500 kW",{"v":1,"d":"1 db"},null,null,0,0,0,0]
[null,"Termál HMV hőcserélő, korrózióálló, 150 kW",{"v":1,"d":"1 db"},null,null,0,0,0,0]
[null,"Kombinált szabályozó szelepek (Fűtés)",{"v":1,"d":"1 db"},null,null,0,0,0,0]
[null,"Kombinált szabályozó szelepek (HMV)",{"v":1,"d":"1 db"},null,null,0,0,0,0]
[null,"Hitelesített hőmennyiségmérő",{"v":1,"d":"1 db"},null,null,0,0,0,0]
[null,"Termál hőközpont gépészeti szerelése korrózióálló anyagokkal: összekötő csővezetékek (DN50-DN100), ívidomok, szerelvények, nyomásmérők és hőmérők",{"v":1,"d":"1 db"},null,null,0,0,0,0]
[null,"Hőközponti gépészeti rendszer polifoam hőszigetelése",{"v":1,"d":"1 db"},{"$nulls":3},0,0,0]
[null,"Irányítástechnika kompakt szabályozóval, szoftverrel, érzékelőkkel, szereléssel, meglévő távfelügyeletre való csatlakozás kiépítése mikrohullámú antennák segítségével",{"v":1,"d":"1 db"},null,null,0,0,0,0]
[null,"Villamos munkák",{"v":1,"d":"1 db"},null,null,0,0,0,0]
[null,"Mindösszesen",{"$nulls":3},{"$f":"SUM(F5:F22)","v":0},{"$f":"SUM(G5:G22)","v":0},{"$f":"SUM(H5:H22)","v":0},{"$f":"SUM(I5:I22)","v":0}]